Cogmind - Beta 13 @@@ ROGUE MODE // 2024.04.28 @ 15:59:34 Player: MiNathan Result: Destroyed by Heavy Explosive Trap Performance ------------- Evolutions (0) 0 Regions Visited (2) 400 Robots Destroyed (30) 150 Value Destroyed (657) 657 Prototype IDs (5) 100 Alien Tech Used (0) 0 Bonus (0) 0 TOTAL SCORE: 1307 Bonus ------- None Cogmind --------- Core Integrity 0/250 Matter 276/300 Energy 100/100 System Corruption 2% Temperature Cool (0) Movement Walking (120) Location -10/Mines Parts ------- > --- POWER (1) -------- (None) > --- PROPULSION (2) --- Aluminum Leg > --- UTILITY (2) ------ Signal Interpreter Hacking Suite > --- WEAPON (2) ------- Medium Laser Small Laser > --- INVENTORY (5) ---- Structural Scanner Sensor Array Faulty Experimental Sensor Array ECM Suite Peak State ------------ > --- POWER ------------ Ion Engine > --- PROPULSION ------- Light Treads Light Treads > --- UTILITY ---------- ECM Suite Hacking Suite > --- WEAPON ----------- EM Pulse Gun Small Laser > --- INVENTORY -------- Light Treads [Rating: 9] Favorites ----------- Power Ion Engine Engine Ion Engine Propulsion Light Treads Treads Light Treads Leg Aluminum Leg Utility Hacking Suite Device ECM Suite Processor Signal Interpreter Hackware Hacking Suite Weapon Small Laser Energy Gun Small Laser Ballistic Gun Light Assault Rifle Launcher Grenade Launcher Build | -11 -10 -10 ------- Run | Yrd Mat Min Slots Evolved . | . . . Power . | . . . Propulsion . | . . . Utility . | . . . Weapon . | . . . Parts Attached 26 | 5 20 1 Power 4 | 1 3 . Engine 4 | 1 3 . Core . | . . . Reactor . | . . . Propulsion 4 | 2 1 1 Treads 3 | 2 1 . Leg 1 | . . 1 Wheel . | . . . Hover . | . . . Flight . | . . . Utility 3 | . 3 . Device 1 | . 1 . Storage . | . . . Processor 1 | . 1 . Hackware 1 | . 1 . Protection . | . . . Artifact . | . . . Weapon 15 | 2 13 . Energy Gun 7 | 1 6 . Energy Cannon . | . . . Ballistic Gun 4 | 1 3 . Ballistic Cannon . | . . . Launcher 4 | . 4 . Special Weapon . | . . . Impact Weapon . | . . . Slashing Weapon . | . . . Piercing Weapon . | . . . Special Melee Weapon . | . . . Unidentified Prototypes . | . . . Parts Lost 7 | . 5 2 Power 2 | . 1 1 Propulsion 2 | . 1 1 Utility . | . . . Weapon 3 | . 3 . Highest Loss Streak 2 | . 2 2 To Critical Strikes . | . . . Average Slot Usage (%) 77 | . 78 70 Engine 11 | . 13 . Treads 17 | . 21 . Leg 2 | . . 12 Device 1 | . 2 . Processor 7 | . 5 14 Hackware 9 | . 8 14 Energy Gun 19 | . 17 28 Ballistic Gun 2 | . 2 . Launcher 4 | . 5 . Naked Turns . | . . . Heaviest Build 12 | 8 12 3 Greatest Support 40 | 40 40 10 Greatest Overweight (x) . | . . . Average Overweight (x) . | . . . Largest Inventory Capacity 5 | 5 5 5 Average Capacity 5 | 5 5 5 Most Carried 5 | 5 3 5 Average Carried 1 | . . 4 Final Capacity 5 | 5 5 5 Final Carried 4 | . 3 4 Class Distribution -------------------- 52% | Scavenger-Mutant 47% | Mutant Dominant Class ---------------- Mutant | -10/Materials Scavenger-Mutant | -10/Mines Resources | -11 -10 -10 ----------- Run | Yrd Mat Min Matter Collected 612 | 242 370 . Remotely . | . . . Salvage Created 912 | . 862 50 Parts 52 | . 52 . Haulers Intercepted 2 | . 2 . Recyclers Shooed 1 | . 1 . Parts Field Recycled . | . . . Retrieved Matter . | . . . Parts Self-Destructed . | . . . Prevented . | . . . Kills | -11 -10 -10 ------- Run | Yrd Mat Min Combat Hostiles Destroyed 17 | . 16 1 Guns 9 | . 9 . AOE 7 | . 7 . Classes Destroyed 7 | . 7 . Builder 5 | . 5 . Hauler 2 | . 2 . Recycler 2 | . 2 . Operator 1 | . 1 . Watcher 3 | . 3 . Swarmer 3 | . 3 . Grunt 14 | . 13 1 Best Kill Streak 5 | . 5 1 Combat Bots Only 3 | . 3 1 Max Kills in Single Turn 2 | . 2 1 Gunslinging . | . . . Exploded 1 | . 1 . Melee . | . . . Uniques/NPCs Destroyed . | . . . Combat | -11 -10 -10 -------- Run | Yrd Mat Min Hostile Shots Fired 132 | . 113 19 Missed 42 | . 39 3 Damage Taken 1214 | . 933 281 Core 286 | . 181 105 Absorbed by Shields . | . . . Regen/Repaired (Parts) 39 | . 39 . Core Remaining (%) 100 | 100 . . Volleys Fired 117 | . 110 7 Largest 2 | . 2 2 Hottest 90 | . 90 90 Shots Fired 151 | . 136 15 Gun 138 | . 123 15 Cannon . | . . . Launcher 13 | . 13 . Special . | . . . Kinetic 35 | . 35 . Thermal 69 | . 54 15 Explosive 13 | . 13 . Electromagnetic 34 | . 34 . Robot Hit Streak 8 | . 8 4 Robot Miss Streak 4 | . 4 2 Penetration Max . | . . . Secondary Targets 1 | . 1 . Max Gunslinging Chain 1 | . 1 . Shots Hit Robots 95 | . 86 9 Core Hits 46 | . 45 1 Critical Kills . | . . . Critical Parts Destroyed . | . . . Critical Strikes 2 | . . 2 Burn 2 | . . 2 Melee Attacks . | . . . Impact . | . . . Slashing . | . . . Piercing . | . . . Sneak Attacks . | . . . Combat Hostiles . | . . . Follow-up Attacks . | . . . Damage Inflicted 2069 | . 1960 109 Guns 1011 | . 902 109 Cannons . | . . . Explosions 1058 | . 1058 . Melee . | . . . Ramming . | . . . Kinetic 137 | . 137 . Thermal 626 | . 517 109 Explosive 983 | . 983 . Electromagnetic 323 | . 323 . Impact . | . . . Slashing . | . . . Piercing . | . . . Highest Corruption 2 | . 2 2 Average Corruption 1 | . 1 2 Corruption Purged . | . . . Corruption Blocked . | . . . Effects 25 | . 14 11 Message Errors 5 | . 2 3 Matter Fused 5 | . 3 2 Heat Flow Errors 3 | . 3 . Energy Discharges 3 | . 2 1 Parts Fused 1 | . 1 . Data Loss (minor) 5 | . 2 3 Data Loss (major) 1 | . . 1 Misfires 1 | . . 1 Weapon Failures 1 | . 1 . Overload Shots . | . . . Overflow Damage 127 | . 127 . Projectiles . | . . . Explosions 127 | . 127 . Melee . | . . . Knockbacks . | . . . Impact . | . . . Kinetic . | . . . Secondary . | . . . Self-Inflicted Damage 120 | . 120 . Shots 3 | . 3 . Rammed 1 | . 1 . Targets Rammed 1 | . 1 . Kicked . | . . . Crushed . | . . . Highest Temperature 277 | . 265 277 Average Temperature 62 | . 45 165 Received Heat Transfer 549 | . 426 123 Effects 1 | . 1 . Energy Bleed 1 | . 1 . Siege Activations . | . . . Robots Corrupted . | . . . Combat Hostiles . | . . . Parts Fried 2 | . 2 . Impact Corruptions . | . . . Robots Melted 1 | . . 1 Combat Hostiles 1 | . . 1 Parts Melted 1 | . 1 . Heat Transferred 1607 | . 1174 433 Parts Sabotaged . | . . . Parts Stolen . | . . . Parts Stripped . | . . . Power Chain Reactions 2 | . 2 . Alert | -11 -10 -10 ------- Run | Yrd Mat Min Peak Influence 222 | . 222 45 Initial 45 | . . 45 Average 94 | . 113 37 Maximum Alert Level 1 | . 1 . Low Security (%) 90 | 100 87 100 Level 1 9 | . 12 . Level 2 . | . . . Level 3 . | . . . Level 4 . | . . . Level 5 . | . . . High Security . | . . . Max Security . | . . . Squads Dispatched 3 | . 3 . Investigation 2 | . 2 . Extermination . | . . . Reinforcement 1 | . 1 . Assault . | . . . Garrison . | . . . Intercept . | . . . Searches Triggered . | . . . Construction Impeded . | . . . Haulers Reinforced . | . . . Active Scanning Responses . | . . . Cargo Convoy Interrupts . | . . . Stealth | -11 -10 -10 --------- Run | Yrd Mat Min Distress Signals 1 | . 1 . Communications Jammed . | . . . Distress Signals . | . . . Times Spotted 30 | . 28 2 Peak Tracking Total 5 | . 5 2 Tactical Retreats . | . . . Traps | -11 -10 -10 ------- Run | Yrd Mat Min Traps Triggered 3 | . 3 . Indirectly . | . . . Trap Hack Attempts . | . . . Triggered . | . . . Disarmed . | . . . Reprogrammed . | . . . Reused 1 | . . 1 Traps Extracted . | . . . Installed 3 | . . 3 Triggered . | . . . Most Traps Carried 1 | . . 1 Machines | -11 -10 -10 ---------- Run | Yrd Mat Min Machines Disabled 2 | . 2 . Max in Single Turn 1 | . 1 . Machines Repaired . | . . . Machines Dismantled . | . . . Machines Sabotaged . | . . . Overloaded Fab Kills . | . . . Hacking | -11 -10 -10 --------- Run | Yrd Mat Min Machines Accessed 8 | . 8 . Terminals 6 | . 6 . Fabricators . | . . . Repair Stations 1 | . 1 . Recycling Units 1 | . 1 . Scanalyzers . | . . . Garrison Access . | . . . Total Hacks 29 | . 29 . Successful 20 | . 20 . Failed 9 | . 9 . Catastrophic . | . . . Database Lockouts . | . . . Manual . | . . . Terminals 21 | . 21 . Fabricators . | . . . Repair Stations 5 | . 5 . Recycling Units 3 | . 3 . Scanalyzers . | . . . Garrison Access . | . . . Terminal Hacks 14 | . 14 . Record 3 | . 3 . Prototype ID Bank 3 | . 3 . Branch Access Points 1 | . 1 . Scanalyzer Index 1 | . 1 . Transport Status 2 | . 2 . Assault Status 1 | . 1 . Registered Components 1 | . 1 . Zone Layout 2 | . 2 . Fabricator Hacks . | . . . Repair Station Hacks 4 | . 4 . Scan Component 2 | . 2 . Repair 2 | . 2 . Recycling Unit Hacks 2 | . 2 . Process 1 | . 1 . Retrieve Matter 1 | . 1 . Scanalyzer . | . . . Garrison Access Hacks . | . . . Unauthorized Hacks . | . . . Terminals . | . . . Fabricators . | . . . Repair Stations . | . . . Recycling Units . | . . . Scanalyzers . | . . . Garrison Access . | . . . Data Cores Recovered . | . . . Used . | . . . Hacking Detections 5 | . 5 . Full Trace Events 2 | . 2 . Feedback Events 1 | . 1 . Corruption 1 | . 1 . Feedback Blocked . | . . . Robot Schematics Acquired . | . . . Robots Built . | . . . Authchips . | . . . Time . | . . . Total Robot Build Rating . | . . . Part Schematics Acquired . | . . . Parts Built . | . . . Authchips . | . . . Time . | . . . Total Part Build Rating . | . . . Parts Repaired 2 | . 2 . Time 52 | . 52 . Parts Recycled . | . . . Recycled Matter 93 | . 93 . Retrieved Matter 186 | . 186 . Retrieved Components . | . . . Parts Scanalyzed . | . . . Part Schematics Acquired . | . . . Parts Damaged . | . . . Bothacking | -11 -10 -10 ------------ Run | Yrd Mat Min Used RIF Installer . | . . . Robots Hacked . | . . . Non-combat . | . . . Combat . | . . . Robot Hacks Applied . | . . . Relay Couplers Released . | . . . Fabnet Peak Effective % . | . . . Robots Rewired . | . . . Allies Hacked . | . . . Hacks Repelled . | . . . Allies | -11 -10 -10 -------- Run | Yrd Mat Min Total Allies . | . . . Largest Group . | . . . Highest-Rated Group . | . . . Highest-Rated Ally . | . . . Total Orders . | . . . Ally Attacks . | . . . Total Damage . | . . . Kills . | . . . Allies Corrupted . | . . . Allies Melted . | . . . Intel | -11 -10 -10 ------- Run | Yrd Mat Min Robot Analysis Total . | . . . Derelict Logs Recovered 1 | . . 1 Drone Launches . | . . . Drone Recoveries . | . . . Exploration | -11 -10 -10 ------------- Run | Yrd Mat Min Turns Passed 2444 | 89 1882 473 Spaces Moved 1221 | 64 927 230 Core 59 | 20 . 39 Treads 971 | 44 927 . Legs 191 | . . 191 Wheels . | . . . Hover . | . . . Flight . | . . . Fastest Speed 50 | 50 160 50 Average Speed 148 | 125 160 108 Slowest Speed 160 | 160 160 120 Overloaded Moves . | . . . Propulsion Burnouts . | . . . Robots Hopped . | . . . Cave-ins Triggered . | . . . Exploration Rate (%) 41 | 4 91 30 Regions Visited 2 Branch Regions 1 Pre-discovered Areas . | . . . Known Exits Taken 1 | . 1 . Unknown Exits Taken 1 | 1 . . Scrap Searched . | . . . Spaces Dug . | . . . Terrain Destroyed 131 | . 131 . Melee . | . . . Projectile . | . . . AOE 131 | . 131 . Terrain Rammed . | . . . Walls Destroyed . | . . . Machines Disabled . | . . . Actions | -11 -10 -10 --------- Run | Yrd Mat Min Total 1710 | 73 1195 442 Wait 302 | . 109 193 Move 1219 | 63 926 230 Hop . | . . . Pick Up 30 | 5 20 5 Fast Attach . | . . . Attach 16 | 5 10 1 Detach . | . . . Swap 10 | . 10 . Drop 12 | . 9 3 Fire 117 | . 110 7 Melee . | . . . Ram . | . . . Kick . | . . . Crush 1 | . 1 . Escape Stasis . | . . . Rewire . | . . . Trap 3 | . . 3 Miscellaneous . | . . . Route ------- -11/Scrapyard -10/Materials (discovered 5 exits: *Mat x3 / *Min x2) -10/Mines (discovered 1 exit: Mat) History --------- Turn | Location | Event 8 | -11/Scrapyard | Discovered new exit (range 15) 90 | -11/Scrapyard | Entered Materials 313 | -10/Materials | Build established: Mutant 341 | -10/Materials | Repaired Grenade Launcher 367 | -10/Materials | Repaired Lgt. Assault Rifle 405 | -10/Materials | Discovered new exit (range 16) 698 | -10/Materials | Discovered new exit (range 15) 807 | -10/Materials | Discovered new exit (range 15) 1178 | -10/Materials | Core integrity fell below 50% 1331 | -10/Materials | Identified exit to Materials 1524 | -10/Materials | Discovered new exit (range 10) 1539 | -10/Materials | Identified exit to Mines 1543 | -10/Materials | Build established: Scavenger-Mutant 1561 | -10/Materials | Discovered exit to Materials (range 17) 1972 | -10/Materials | Entered Mines 1977 | -10/Mines | Core integrity fell below 20% 2004 | -10/Mines | Found a damaged Exp. Sensor Array with a note attached 2005 | -10/Mines | Found Prototype Device 2329 | -10/Mines | Found a hidden stash of uninstalled traps 2411 | -10/Mines | Assembled infested the area 2416 | -10/Mines | Assisted by a Guerilla fighting off Assembled 2445 | -10/Mines | Destroyed by Heavy Explosive Trap Last Messages --------------- Dropped Heavy Explosive Trap. Installed Heavy Explosive Trap. Acquired Heavy Explosive Trap. Dropped Heavy Explosive Trap. Installed Heavy Explosive Trap. Acquired Heavy Explosive Trap. System corrupted: Component data lost. Dropped Heavy Explosive Trap. 2M|LMGIV J#GCZTGJ|EA